[Event "*** Titled Tuesday Blitz"]
[Site "Chess.com"]
[Date "2020.04.14"]
[Round "5"]
[White "anesar92"]
[Black "Blitzking642"]
[Result "1-0"]
[WhiteElo "2684"]
[BlackElo "2392"]
[TimeControl "180+1"]
[EndTime "10:53:07 PDT"]
[Termination "anesar92 won on time"]

1. e4 {[%clk 0:02:27.1]} 1... c5 {[%clk 0:02:59.9]} 2. Nf3 {[%clk 0:02:26.9]}
2... Nc6 {[%clk 0:02:59.7]} 3. d4 {[%clk 0:02:25.8]} 3... cxd4 {[%clk
0:03:00.6]} 4. Nxd4 {[%clk 0:02:26]} 4... g6 {[%clk 0:03:01.1]} 5. c4 {[%clk
0:02:25.4]} 5... Bg7 {[%clk 0:03:00.5]} 6. Be3 {[%clk 0:02:25.8]} 6... Nf6
{[%clk 0:03:00.9]} 7. Nc3 {[%clk 0:02:25.7]} 7... O-O {[%clk 0:03:01.3]} 8. Be2
{[%clk 0:02:26]} 8... d6 {[%clk 0:03:01.8]} 9. O-O {[%clk 0:02:25.6]} 9... Bd7
{[%clk 0:03:02.3]} 10. h3 {[%clk 0:02:25.1]} 10... Nxd4 {[%clk 0:03:02.4]} 11.
Bxd4 {[%clk 0:02:20.4]} 11... Bc6 {[%clk 0:03:02.7]} 12. Qc2 {[%clk 0:02:20.8]}
12... a5 {[%clk 0:03:02.6]} 13. Rad1 {[%clk 0:02:20.4]} 13... Nd7 {[%clk
0:03:02.6]} 14. Bxg7 {[%clk 0:02:21]} 14... Kxg7 {[%clk 0:03:02.1]} 15. Bg4
{[%clk 0:02:21.6]} 15... Ne5 {[%clk 0:02:46.9]} 16. c5 {[%clk 0:02:16.8]} 16...
Nxg4 {[%clk 0:02:34.2]} 17. hxg4 {[%clk 0:02:17.7]} 17... Qc8 {[%clk 0:02:20.5]}
18. cxd6 {[%clk 0:02:16.1]} 18... exd6 {[%clk 0:02:21.4]} 19. f3 {[%clk
0:02:13.7]} 19... Qe6 {[%clk 0:02:14.9]} 20. Rd4 {[%clk 0:02:10]} 20... Rfd8
{[%clk 0:02:13.3]} 21. Rfd1 {[%clk 0:02:09.5]} 21... a4 {[%clk 0:02:08.3]} 22.
Qd2 {[%clk 0:02:08.5]} 22... a3 {[%clk 0:02:01.3]} 23. b3 {[%clk 0:02:06.9]}
23... Qe5 {[%clk 0:01:59.3]} 24. Ne2 {[%clk 0:02:01.3]} 24... h5 {[%clk
0:01:51.2]} 25. gxh5 {[%clk 0:01:59.6]} 25... Qxh5 {[%clk 0:01:48.9]} 26. Rxd6
{[%clk 0:01:52.6]} 26... Rh8 {[%clk 0:01:39.9]} 27. Qd4+ {[%clk 0:01:48.1]}
27... Kg8 {[%clk 0:01:32.9]} 28. Ng3 {[%clk 0:01:44.4]} 28... Qg5 {[%clk
0:01:24.9]} 29. Rd8+ {[%clk 0:01:39.9]} 29... Rxd8 {[%clk 0:01:13.9]} 30. Qxd8+
{[%clk 0:01:39.8]} 30... Qxd8 {[%clk 0:01:14.4]} 31. Rxd8+ {[%clk 0:01:31.1]}
31... Kg7 {[%clk 0:01:15.3]} 32. Rxh8 {[%clk 0:01:25.1]} 32... Kxh8 {[%clk
0:01:14.8]} 33. Kf2 {[%clk 0:01:22.2]} 33... Bb5 {[%clk 0:01:13.3]} 34. Ne2
{[%clk 0:01:16.9]} 34... Kg7 {[%clk 0:01:08.2]} 35. Ke3 {[%clk 0:01:13.9]} 35...
Kf6 {[%clk 0:01:03.3]} 36. Nc3 {[%clk 0:01:11.1]} 36... Bf1 {[%clk 0:01:02.8]}
37. g3 {[%clk 0:01:08.4]} 37... b5 {[%clk 0:01:00.5]} 38. Kf2 {[%clk 0:01:06.7]}
38... Bd3 {[%clk 0:00:59.2]} 39. Ke3 {[%clk 0:01:00.3]} 39... Bf1 {[%clk
0:00:58.7]} 40. Nd5+ {[%clk 0:00:54]} 40... Ke5 {[%clk 0:00:44.5]} 41. Nb4
{[%clk 0:00:47.9]} 41... Kd6 {[%clk 0:00:21.3]} 42. Kd4 {[%clk 0:00:43.6]} 42...
f6 {[%clk 0:00:16.1]} 43. Nc2 {[%clk 0:00:38]} 43... g5 {[%clk 0:00:14.9]} 44.
Nxa3 {[%clk 0:00:30.3]} 44... Kc6 {[%clk 0:00:15]} 45. Nc2 {[%clk 0:00:24.5]}
45... Be2 {[%clk 0:00:13.2]} 46. Nb4+ {[%clk 0:00:24.1]} 46... Kd6 {[%clk
0:00:12.8]} 47. f4 {[%clk 0:00:24.2]} 47... gxf4 {[%clk 0:00:11.4]} 48. gxf4
{[%clk 0:00:21.6]} 48... Bd1 {[%clk 0:00:11.4]} 49. e5+ {[%clk 0:00:19.3]} 49...
fxe5+ {[%clk 0:00:10.8]} 50. fxe5+ {[%clk 0:00:16.2]} 50... Ke6 {[%clk
0:00:11.2]} 51. Nd3 {[%clk 0:00:14.7]} 51... Bc2 {[%clk 0:00:09.9]} 52. Nc5+
{[%clk 0:00:12.7]} 52... Ke7 {[%clk 0:00:09.8]} 53. b4 {[%clk 0:00:08.4]} 53...
Bb1 {[%clk 0:00:09.2]} 54. a3 {[%clk 0:00:09]} 54... Ba2 {[%clk 0:00:09.4]} 55.
Nd3 {[%clk 0:00:06.2]} 55... Ke6 {[%clk 0:00:08.8]} 56. Nc5+ {[%clk 0:00:07.1]}
56... Ke7 {[%clk 0:00:08.8]} 57. Ne4 {[%clk 0:00:08]} 57... Ke6 {[%clk
0:00:08.6]} 58. Nc3 {[%clk 0:00:03.7]} 58... Bc4 {[%clk 0:00:05.3]} 59. Kc5
{[%clk 0:00:04.6]} 59... Kxe5 {[%clk 0:00:02.5]} 60. Nxb5 {[%clk 0:00:03.7]}
60... Be2 {[%clk 0:00:02]} 61. Nc3 {[%clk 0:00:04.6]} 61... Ke6 {[%clk
0:00:01.8]} 62. b5 {[%clk 0:00:05.5]} 62... Bf3 {[%clk 0:00:01.3]} 63. a4 {[%clk
0:00:06.4]} 63... Kd7 {[%clk 0:00:01.5]} 64. a5 {[%clk 0:00:07.3]} 64... Kc8
{[%clk 0:00:01.8]} 65. a6 {[%clk 0:00:08.2]} 65... Kb8 {[%clk 0:00:02.3]} 66.
Na4 {[%clk 0:00:08.8]} 66... Ka8 {[%clk 0:00:02.6]} 67. Kb6 {[%clk 0:00:07.1]}
67... Kb8 {[%clk 0:00:02.3]} 68. Ka5 {[%clk 0:00:03.3]} 68... Ka7 {[%clk
0:00:02.1]} 69. Nc5 {[%clk 0:00:03.9]} 69... Bg4 {[%clk 0:00:01.5]} 70. b6+
{[%clk 0:00:04.8]} 70... Kb8 {[%clk 0:00:01.6]} 71. b7 {[%clk 0:00:05.1]} 71...
Ka7 {[%clk 0:00:01.4]} 72. Nd7 {[%clk 0:00:05.5]} 72... Bxd7 {[%clk 0:00:01.3]}
73. b8=Q+ {[%clk 0:00:06.4]} 1-0

[Event "*** Titled Tuesday Blitz"]
[Site "Chess.com"]
[Date "2020.04.14"]
[Round "5"]
[White "Suleyman_Chess06"]
[Black "Volodar_Murzin"]
[Result "0-1"]
[WhiteElo "2236"]
[BlackElo "2681"]
[TimeControl "180+1"]
[EndTime "10:53:16 PDT"]
[Termination "Volodar_Murzin won by checkmate"]

1. d4 {[%clk 0:03:00.9]} 1... Nf6 {[%clk 0:02:59.5]} 2. Nf3 {[%clk 0:03:01.3]}
2... g6 {[%clk 0:02:59.5]} 3. Bf4 {[%clk 0:03:01.5]} 3... Bg7 {[%clk 0:02:59.6]}
4. e3 {[%clk 0:03:02]} 4... O-O {[%clk 0:02:59.5]} 5. h3 {[%clk 0:03:02.2]} 5...
d6 {[%clk 0:02:59.9]} 6. Be2 {[%clk 0:03:02.4]} 6... b6 {[%clk 0:02:59.9]} 7.
O-O {[%clk 0:03:01.2]} 7... Bb7 {[%clk 0:02:59.6]} 8. c3 {[%clk 0:03:01.6]} 8...
Nbd7 {[%clk 0:02:58.3]} 9. Nbd2 {[%clk 0:03:00.9]} 9... Ne4 {[%clk 0:02:56.8]}
10. Nxe4 {[%clk 0:02:55.6]} 10... Bxe4 {[%clk 0:02:54.9]} 11. Bd3 {[%clk
0:02:55.5]} 11... Bb7 {[%clk 0:02:49.7]} 12. Bh2 {[%clk 0:02:49.9]} 12... c5
{[%clk 0:02:46.2]} 13. Re1 {[%clk 0:02:41.5]} 13... Qc8 {[%clk 0:02:39.4]} 14.
Rc1 {[%clk 0:02:26.2]} 14... Ba6 {[%clk 0:02:35.2]} 15. Qe2 {[%clk 0:02:23.1]}
15... Bxd3 {[%clk 0:02:33.6]} 16. Qxd3 {[%clk 0:02:24]} 16... Qb7 {[%clk
0:02:34]} 17. e4 {[%clk 0:02:16]} 17... b5 {[%clk 0:02:27]} 18. e5 {[%clk
0:02:02.3]} 18... dxe5 {[%clk 0:02:21.4]} 19. Nxe5 {[%clk 0:01:59.6]} 19... Rad8
{[%clk 0:02:06]} 20. Qe3 {[%clk 0:01:56.4]} 20... cxd4 {[%clk 0:01:15]} 21. cxd4
{[%clk 0:01:49.9]} 21... Rc8 {[%clk 0:01:14.6]} 22. Bg3 {[%clk 0:01:41.5]} 22...
Nf6 {[%clk 0:01:10.2]} 23. Qf3 {[%clk 0:01:23.7]} 23... Qxf3 {[%clk 0:00:48.7]}
24. Nxf3 {[%clk 0:01:24.6]} 24... Nd5 {[%clk 0:00:48.7]} 25. Be5 {[%clk
0:01:12.5]} 25... Bh6 {[%clk 0:00:37]} 26. Rc5 {[%clk 0:01:06.9]} 26... Rxc5
{[%clk 0:00:34.7]} 27. dxc5 {[%clk 0:01:07.8]} 27... Rc8 {[%clk 0:00:22.6]} 28.
Bd4 {[%clk 0:01:04.5]} 28... f6 {[%clk 0:00:19]} 29. Re6 {[%clk 0:01:00.1]}
29... Kf7 {[%clk 0:00:16.5]} 30. Ra6 {[%clk 0:01:00]} 30... Rc7 {[%clk
0:00:16.4]} 31. Ra5 {[%clk 0:00:58.3]} 31... e5 {[%clk 0:00:14.4]} 32. Bc3
{[%clk 0:00:50.2]} 32... b4 {[%clk 0:00:14]} 33. Be1 {[%clk 0:00:48.9]} 33...
Bf8 {[%clk 0:00:13.8]} 34. c6 {[%clk 0:00:48.5]} 34... Ke6 {[%clk 0:00:13.5]}
35. Kf1 {[%clk 0:00:43.6]} 35... Be7 {[%clk 0:00:07.1]} 36. b3 {[%clk
0:00:37.3]} 36... Rxc6 {[%clk 0:00:05.3]} 37. Rxa7 {[%clk 0:00:36.7]} 37... Rc1
{[%clk 0:00:05.7]} 38. Nd2 {[%clk 0:00:32.2]} 38... Bc5 {[%clk 0:00:03.4]} 39.
Ra6+ {[%clk 0:00:32.1]} 39... Kf7 {[%clk 0:00:02.3]} 40. Ne4 {[%clk 0:00:30.4]}
40... Be7 {[%clk 0:00:02.6]} 41. Ra7 {[%clk 0:00:20.8]} 41... Ke6 {[%clk
0:00:02.5]} 42. Ra6+ {[%clk 0:00:20.1]} 42... Kf7 {[%clk 0:00:02.9]} 43. Ra5
{[%clk 0:00:20.1]} 43... Ke6 {[%clk 0:00:02.3]} 44. Ra7 {[%clk 0:00:19.7]} 44...
Rd1 {[%clk 0:00:01.7]} 45. Ra6+ {[%clk 0:00:18.6]} 45... Kf7 {[%clk 0:00:01.7]}
46. g3 {[%clk 0:00:19.2]} 46... Rd4 {[%clk 0:00:01.9]} 47. Nd6+ {[%clk
0:00:19.4]} 47... Bxd6 {[%clk 0:00:02]} 48. Rxd6 {[%clk 0:00:20.3]} 48... Ne3+
{[%clk 0:00:02.7]} 49. fxe3 {[%clk 0:00:19.9]} 49... Rxd6 {[%clk 0:00:03.6]} 50.
Bxb4 {[%clk 0:00:20.4]} 50... Ra6 {[%clk 0:00:04.1]} 51. a3 {[%clk 0:00:19.5]}
51... Ke6 {[%clk 0:00:03.8]} 52. Ke2 {[%clk 0:00:19.9]} 52... e4 {[%clk
0:00:04.2]} 53. Kd2 {[%clk 0:00:19.9]} 53... Kd5 {[%clk 0:00:04.8]} 54. Kc3
{[%clk 0:00:20.2]} 54... Rc6+ {[%clk 0:00:05.5]} 55. Kd2 {[%clk 0:00:20.8]}
55... f5 {[%clk 0:00:06.3]} 56. Bc3 {[%clk 0:00:21.1]} 56... g5 {[%clk
0:00:06.5]} 57. a4 {[%clk 0:00:20.7]} 57... h5 {[%clk 0:00:06.8]} 58. b4 {[%clk
0:00:20.2]} 58... f4 {[%clk 0:00:07.3]} 59. gxf4 {[%clk 0:00:20.1]} 59... gxf4
{[%clk 0:00:07.7]} 60. exf4 {[%clk 0:00:20.3]} 60... e3+ {[%clk 0:00:08.2]} 61.
Kd3 {[%clk 0:00:20.8]} 61... Rxc3+ {[%clk 0:00:08.6]} 62. Kxc3 {[%clk
0:00:21.2]} 62... Ke4 {[%clk 0:00:09.2]} 63. a5 {[%clk 0:00:21.1]} 63... Kf3
{[%clk 0:00:09.5]} 64. a6 {[%clk 0:00:21.3]} 64... e2 {[%clk 0:00:10.1]} 65. Kd2
{[%clk 0:00:19.9]} 65... Kf2 {[%clk 0:00:10.3]} 66. a7 {[%clk 0:00:20.8]} 66...
e1=Q+ {[%clk 0:00:10.6]} 67. Kc2 {[%clk 0:00:21.7]} 67... Qe4+ {[%clk 0:00:10]}
68. Kb3 {[%clk 0:00:22.6]} 68... Qb7 {[%clk 0:00:10.4]} 69. f5 {[%clk
0:00:23.2]} 69... Qxa7 {[%clk 0:00:10.5]} 70. f6 {[%clk 0:00:24.1]} 70... Qf7+
{[%clk 0:00:10.6]} 71. Ka4 {[%clk 0:00:23.6]} 71... Qxf6 {[%clk 0:00:11.5]} 72.
b5 {[%clk 0:00:24.5]} 72... Kg3 {[%clk 0:00:12]} 73. Ka5 {[%clk 0:00:25.4]}
73... Kxh3 {[%clk 0:00:11.9]} 74. b6 {[%clk 0:00:26.3]} 74... Qb2 {[%clk
0:00:12.3]} 75. Ka6 {[%clk 0:00:26]} 75... Kg4 {[%clk 0:00:12.6]} 76. b7 {[%clk
0:00:26.4]} 76... h4 {[%clk 0:00:13.1]} 77. Ka7 {[%clk 0:00:25.9]} 77... Qa3+
{[%clk 0:00:12.3]} 78. Kb8 {[%clk 0:00:25.3]} 78... Qc5 {[%clk 0:00:12.2]} 79.
Ka8 {[%clk 0:00:25.1]} 79... Qa5+ {[%clk 0:00:12.3]} 80. Kb8 {[%clk 0:00:25.3]}
80... h3 {[%clk 0:00:11.6]} 81. Kc8 {[%clk 0:00:25]} 81... Qc5+ {[%clk
0:00:11.8]} 82. Kb8 {[%clk 0:00:25.5]} 82... h2 {[%clk 0:00:11.2]} 83. Ka8
{[%clk 0:00:25.8]} 83... h1=Q {[%clk 0:00:10.1]} 84. Kb8 {[%clk 0:00:25.9]}
84... Qe7 {[%clk 0:00:09.5]} 85. Kc8 {[%clk 0:00:25]} 85... Qhxb7# {[%clk
0:00:10.4]} 0-1

[Event "*** Titled Tuesday Blitz"]
[Site "Chess.com"]
[Date "2020.04.14"]
[Round "5"]
[White "tornikesanikidze"]
[Black "TranJMinh"]
[Result "1/2-1/2"]
[WhiteElo "2368"]
[BlackElo "2777"]
[TimeControl "180+1"]
[EndTime "10:53:17 PDT"]
[Termination "Game drawn by repetition"]

1. d4 {[%clk 0:03:00.8]} 1... Nf6 {[%clk 0:03:00.1]} 2. c4 {[%clk 0:03:00.2]}
2... e6 {[%clk 0:03:00.1]} 3. Nf3 {[%clk 0:03:00]} 3... b6 {[%clk 0:02:59.6]} 4.
a3 {[%clk 0:02:59.8]} 4... Ba6 {[%clk 0:02:59.9]} 5. Qb3 {[%clk 0:02:57.8]} 5...
Be7 {[%clk 0:02:54]} 6. Nc3 {[%clk 0:02:56.1]} 6... O-O {[%clk 0:02:52.4]} 7. e4
{[%clk 0:02:52.5]} 7... c5 {[%clk 0:02:33.1]} 8. d5 {[%clk 0:02:50.2]} 8... exd5
{[%clk 0:02:34]} 9. cxd5 {[%clk 0:02:48]} 9... Bxf1 {[%clk 0:02:33.1]} 10. Kxf1
{[%clk 0:02:48.9]} 10... d6 {[%clk 0:02:32.2]} 11. g3 {[%clk 0:02:48.6]} 11...
Na6 {[%clk 0:02:13.4]} 12. Kg2 {[%clk 0:02:43.1]} 12... Nc7 {[%clk 0:02:11.6]}
13. a4 {[%clk 0:02:19.9]} 13... Nd7 {[%clk 0:02:10.6]} 14. Bf4 {[%clk
0:02:18.1]} 14... g5 {[%clk 0:02:07.1]} 15. Be3 {[%clk 0:02:12]} 15... g4 {[%clk
0:01:54.6]} 16. Nd2 {[%clk 0:02:10.4]} 16... f5 {[%clk 0:01:22.1]} 17. Nc4
{[%clk 0:02:04.5]} 17... Kh8 {[%clk 0:01:12.8]} 18. Qd1 {[%clk 0:01:55.1]} 18...
Bf6 {[%clk 0:00:38.7]} 19. Nxd6 {[%clk 0:01:42.8]} 19... Bxc3 {[%clk 0:00:34.7]}
20. bxc3 {[%clk 0:01:42.4]} 20... Ne5 {[%clk 0:00:34.1]} 21. Nxf5 {[%clk
0:01:41.6]} 21... Nxd5 {[%clk 0:00:28.6]} 22. Qxd5 {[%clk 0:01:34]} 22... Qxd5
{[%clk 0:00:28.6]} 23. exd5 {[%clk 0:01:34.9]} 23... Rxf5 {[%clk 0:00:29.2]} 24.
h3 {[%clk 0:01:33.8]} 24... Rd8 {[%clk 0:00:21.6]} 25. hxg4 {[%clk 0:01:06.3]}
25... Nxg4 {[%clk 0:00:22.5]} 26. c4 {[%clk 0:01:06.8]} 26... Nxe3+ {[%clk
0:00:17.4]} 27. fxe3 {[%clk 0:01:06.6]} 27... Re8 {[%clk 0:00:17.8]} 28. Rhe1
{[%clk 0:01:01.2]} 28... Re4 {[%clk 0:00:16.1]} 29. Rad1 {[%clk 0:00:33]} 29...
Kg7 {[%clk 0:00:11.8]} 30. d6 {[%clk 0:00:29.2]} 30... Rf8 {[%clk 0:00:12.2]}
31. Rd5 {[%clk 0:00:23.3]} 31... Rd8 {[%clk 0:00:09.7]} 32. d7 {[%clk
0:00:14.7]} 32... Re7 {[%clk 0:00:05.5]} 33. Red1 {[%clk 0:00:13.9]} 33... Rxe3
{[%clk 0:00:06.1]} 34. a5 {[%clk 0:00:12.7]} 34... Re6 {[%clk 0:00:04.7]} 35.
axb6 {[%clk 0:00:12.5]} 35... axb6 {[%clk 0:00:05.6]} 36. Kf3 {[%clk 0:00:12.6]}
36... Kf7 {[%clk 0:00:06]} 37. Rh1 {[%clk 0:00:11.5]} 37... h6 {[%clk 0:00:06]}
38. Kg4 {[%clk 0:00:09.1]} 38... Ke7 {[%clk 0:00:06.3]} 39. Rhd1 {[%clk
0:00:08.8]} 39... Rg8+ {[%clk 0:00:05.4]} 40. Kh3 {[%clk 0:00:08.6]} 40... Rd8
{[%clk 0:00:05.2]} 41. g4 {[%clk 0:00:08.1]} 41... Re4 {[%clk 0:00:04.5]} 42.
Kh4 {[%clk 0:00:08.1]} 42... Rxc4 {[%clk 0:00:04.6]} 43. Re1+ {[%clk 0:00:08.2]}
43... Kf7 {[%clk 0:00:04.4]} 44. Rf5+ {[%clk 0:00:08.4]} 44... Kg7 {[%clk
0:00:03.2]} 45. Re7+ {[%clk 0:00:08.4]} 45... Kg6 {[%clk 0:00:02.8]} 46. Re6+
{[%clk 0:00:08.7]} 46... Kg7 {[%clk 0:00:03.2]} 47. Re7+ {[%clk 0:00:08.2]}
47... Kg6 {[%clk 0:00:03.6]} 48. Rd5 {[%clk 0:00:06.6]} 48... Rd4 {[%clk
0:00:03.1]} 49. Re6+ {[%clk 0:00:04.5]} 49... Kf7 {[%clk 0:00:03.2]} 50. Rxd4
{[%clk 0:00:04.4]} 50... cxd4 {[%clk 0:00:04.1]} 51. Rxb6 {[%clk 0:00:02.9]}
51... Rxd7 {[%clk 0:00:03.8]} 52. Rb1 {[%clk 0:00:02.4]} 52... d3 {[%clk
0:00:04.1]} 53. Kg3 {[%clk 0:00:02.7]} 53... d2 {[%clk 0:00:05]} 54. Rd1 {[%clk
0:00:02.7]} 54... Kf6 {[%clk 0:00:05.6]} 55. Kf4 {[%clk 0:00:02.9]} 55... Rd3
{[%clk 0:00:04.7]} 56. Ke4 {[%clk 0:00:03]} 56... Rd7 {[%clk 0:00:04.2]} 57. Ke3
{[%clk 0:00:02.8]} 57... Kg5 {[%clk 0:00:04.8]} 58. Rxd2 {[%clk 0:00:03.6]}
58... Rf7 {[%clk 0:00:04.5]} 59. Rf2 {[%clk 0:00:03.1]} 59... Re7+ {[%clk
0:00:03.8]} 60. Kf3 {[%clk 0:00:04]} 60... Ra7 {[%clk 0:00:03.4]} 61. Kg3 {[%clk
0:00:04.9]} 61... Ra3+ {[%clk 0:00:03.6]} 62. Rf3 {[%clk 0:00:05.8]} 62... Ra4
{[%clk 0:00:04.5]} 63. Rf5+ {[%clk 0:00:05.7]} 63... Kg6 {[%clk 0:00:05]} 64.
Kh4 {[%clk 0:00:06.6]} 64... Ra3 {[%clk 0:00:05.2]} 65. Rb5 {[%clk 0:00:06.6]}
65... Ra6 {[%clk 0:00:05.7]} 66. Rb7 {[%clk 0:00:06.6]} 66... Re6 {[%clk
0:00:06.1]} 67. Rc7 {[%clk 0:00:06.7]} 67... Rf6 {[%clk 0:00:06.5]} 68. Rd7
{[%clk 0:00:06.9]} 68... Re6 {[%clk 0:00:06.9]} 69. Rd5 {[%clk 0:00:06.9]} 69...
Kf6 {[%clk 0:00:07.1]} 70. Rh5 {[%clk 0:00:06.7]} 70... Kg7 {[%clk 0:00:07.3]}
71. Rf5 {[%clk 0:00:06.6]} 71... Kg6 {[%clk 0:00:07.7]} 72. Ra5 {[%clk 0:00:07]}
72... Rb6 {[%clk 0:00:08]} 73. Rc5 {[%clk 0:00:07]} 73... Rd6 {[%clk 0:00:08]}
74. Rb5 {[%clk 0:00:06.9]} 74... Rf6 {[%clk 0:00:08.4]} 75. Rc5 {[%clk
0:00:07.1]} 75... Kf7 {[%clk 0:00:08.7]} 76. Rd5 {[%clk 0:00:05.8]} 76... Kg6
{[%clk 0:00:09]} 77. Rb5 {[%clk 0:00:05.8]} 77... Re6 {[%clk 0:00:09.3]} 78. Rc5
{[%clk 0:00:06.1]} 78... Ra6 {[%clk 0:00:09.5]} 79. Rb5 {[%clk 0:00:06.4]} 79...
Ra1 {[%clk 0:00:08.5]} 80. Rb6+ {[%clk 0:00:06.5]} 80... Kg7 {[%clk 0:00:09]}
81. Kg3 {[%clk 0:00:06.9]} 81... Ra4 {[%clk 0:00:08.5]} 82. Rb7+ {[%clk
0:00:06.4]} 82... Kf6 {[%clk 0:00:08.5]} 83. Rb6+ {[%clk 0:00:07.3]} 83... Kg5
{[%clk 0:00:08.9]} 84. Rb5+ {[%clk 0:00:07.7]} 84... Kg6 {[%clk 0:00:09.4]} 85.
Rb6+ {[%clk 0:00:08.6]} 85... Kg5 {[%clk 0:00:09.8]} 86. Rb5+ {[%clk 0:00:08.9]}
86... Kg6 {[%clk 0:00:10.4]} 87. Kh4 {[%clk 0:00:09]} 87... Ra1 {[%clk
0:00:07.2]} 88. Rb6+ {[%clk 0:00:09.2]} 88... Kg7 {[%clk 0:00:06.6]} 89. Rb7+
{[%clk 0:00:09.4]} 89... Kf6 {[%clk 0:00:06.1]} 90. Rb6+ {[%clk 0:00:09.6]}
90... Kg7 {[%clk 0:00:04.9]} 1/2-1/2

[Event "*** Titled Tuesday Blitz"]
[Site "Chess.com"]
[Date "2020.04.14"]
[Round "5"]
[White "SARGISMV"]
[Black "Benjoneliere44"]
[Result "1-0"]
[WhiteElo "2487"]
[BlackElo "2630"]
[TimeControl "180+1"]
[EndTime "10:53:23 PDT"]
[Termination "SARGISMV won by resignation"]

1. Nf3 {[%clk 0:03:00.9]} 1... c5 {[%clk 0:02:50.4]} 2. c4 {[%clk 0:03:01.8]}
2... g6 {[%clk 0:02:48.6]} 3. g3 {[%clk 0:03:02.4]} 3... Bg7 {[%clk 0:02:48.5]}
4. Bg2 {[%clk 0:03:02.3]} 4... Nc6 {[%clk 0:02:48.9]} 5. Nc3 {[%clk 0:03:02.4]}
5... d6 {[%clk 0:02:49.8]} 6. O-O {[%clk 0:03:02.5]} 6... e6 {[%clk 0:02:50.7]}
7. a3 {[%clk 0:03:02.6]} 7... Nge7 {[%clk 0:02:51.1]} 8. Rb1 {[%clk 0:03:02.8]}
8... a5 {[%clk 0:02:50.5]} 9. d3 {[%clk 0:03:02.1]} 9... O-O {[%clk 0:02:49.9]}
10. Bg5 {[%clk 0:03:01.9]} 10... h6 {[%clk 0:02:49.1]} 11. Bd2 {[%clk 0:03:02]}
11... Kh7 {[%clk 0:02:28.1]} 12. Ne1 {[%clk 0:03:01.1]} 12... Qd7 {[%clk
0:02:22.4]} 13. Nc2 {[%clk 0:03:01]} 13... b6 {[%clk 0:02:21.8]} 14. b4 {[%clk
0:02:59]} 14... axb4 {[%clk 0:02:22.7]} 15. axb4 {[%clk 0:02:59.7]} 15... Bb7
{[%clk 0:02:23.3]} 16. bxc5 {[%clk 0:02:34]} 16... bxc5 {[%clk 0:02:24.2]} 17.
Ne4 {[%clk 0:02:34.6]} 17... Rab8 {[%clk 0:02:20]} 18. Qc1 {[%clk 0:02:31.2]}
18... f5 {[%clk 0:02:18.4]} 19. Nc3 {[%clk 0:02:27.3]} 19... Nd4 {[%clk
0:02:15.8]} 20. Nxd4 {[%clk 0:02:24.9]} 20... cxd4 {[%clk 0:02:13.7]} 21. Nb5
{[%clk 0:02:21.5]} 21... Bxg2 {[%clk 0:02:13.7]} 22. Kxg2 {[%clk 0:02:22]} 22...
Nc6 {[%clk 0:02:02.8]} 23. Rb3 {[%clk 0:01:50.6]} 23... h5 {[%clk 0:01:50.5]}
24. Qb2 {[%clk 0:01:36.9]} 24... h4 {[%clk 0:01:47.9]} 25. Bg5 {[%clk
0:01:34.7]} 25... h3+ {[%clk 0:01:39.8]} 26. Kxh3 {[%clk 0:01:31.8]} 26... d5
{[%clk 0:01:40.7]} 27. c5 {[%clk 0:01:09]} 27... e5 {[%clk 0:01:34.2]} 28. Kg2
{[%clk 0:01:03.6]} 28... e4 {[%clk 0:01:34.4]} 29. Nd6 {[%clk 0:01:00.3]} 29...
Be5 {[%clk 0:01:24.6]} 30. Rxb8 {[%clk 0:00:57.7]} 30... Rxb8 {[%clk 0:01:23.9]}
31. Qa2 {[%clk 0:00:54.4]} 31... Bxd6 {[%clk 0:01:20.3]} 32. Qxd5 {[%clk
0:00:51.9]} 32... exd3 {[%clk 0:00:54.2]} 33. exd3 {[%clk 0:00:50]} 33... Rb5
{[%clk 0:00:40.8]} 34. Qxd6 {[%clk 0:00:48.7]} 34... Qxd6 {[%clk 0:00:40.8]} 35.
cxd6 {[%clk 0:00:49.6]} 35... Rd5 {[%clk 0:00:41.2]} 36. Bf4 {[%clk 0:00:44.8]}
36... g5 {[%clk 0:00:39]} 37. Bxg5 {[%clk 0:00:44.4]} 37... Rxd6 {[%clk
0:00:39.5]} 38. Rc1 {[%clk 0:00:40.7]} 38... Re6 {[%clk 0:00:37.9]} 39. h4
{[%clk 0:00:37.6]} 39... Kg6 {[%clk 0:00:37.8]} 40. Rb1 {[%clk 0:00:30.8]} 40...
Ne5 {[%clk 0:00:35.9]} 41. Rb3 {[%clk 0:00:29.5]} 41... Rc6 {[%clk 0:00:33.3]}
42. Bf4 {[%clk 0:00:27.7]} 42... Nd7 {[%clk 0:00:29.2]} 43. Rb4 {[%clk
0:00:24.7]} 43... Nf6 {[%clk 0:00:26.6]} 44. Rxd4 {[%clk 0:00:24.2]} 44... Rc2
{[%clk 0:00:27.5]} 45. Rd6 {[%clk 0:00:24]} 45... Kf7 {[%clk 0:00:27.1]} 46. Be3
{[%clk 0:00:20.4]} 46... Ng4 {[%clk 0:00:26.7]} 47. Ba7 {[%clk 0:00:20]} 47...
Ra2 {[%clk 0:00:26.4]} 48. Rd7+ {[%clk 0:00:20.1]} 48... Ke6 {[%clk 0:00:26.3]}
49. Rb7 {[%clk 0:00:20.1]} 49... Ra3 {[%clk 0:00:25.8]} 50. d4 {[%clk
0:00:18.4]} 50... Ra2 {[%clk 0:00:24.9]} 51. d5+ {[%clk 0:00:18.6]} 51... Kxd5
{[%clk 0:00:25.1]} 52. h5 {[%clk 0:00:16.9]} 52... Ra6 {[%clk 0:00:24.3]} 53.
Rb5+ {[%clk 0:00:15.7]} 53... Ke6 {[%clk 0:00:18.8]} 54. Rb6+ {[%clk 0:00:15.6]}
54... Rxb6 {[%clk 0:00:18.6]} 55. Bxb6 {[%clk 0:00:16.5]} 55... Nf6 {[%clk
0:00:17.7]} 56. h6 {[%clk 0:00:15.9]} 56... Kf7 {[%clk 0:00:18.6]} 57. Kf3
{[%clk 0:00:15.4]} 57... Kg6 {[%clk 0:00:18.6]} 58. Be3 {[%clk 0:00:15.8]} 58...
Ng4 {[%clk 0:00:18.7]} 59. Kf4 {[%clk 0:00:16.1]} 59... Nxh6 {[%clk 0:00:18.5]}
60. Ke5 {[%clk 0:00:16]} 60... Nf7+ {[%clk 0:00:18.3]} 61. Ke6 {[%clk
0:00:15.7]} 61... Nd8+ {[%clk 0:00:18.7]} 62. Kd7 {[%clk 0:00:15.4]} 62... Nf7
{[%clk 0:00:18.5]} 63. Ke6 {[%clk 0:00:15.7]} 63... Nd8+ {[%clk 0:00:18.3]} 64.
Kd5 {[%clk 0:00:15.9]} 64... Nf7 {[%clk 0:00:18.2]} 65. Bc5 {[%clk 0:00:15.6]}
65... Ng5 {[%clk 0:00:17.9]} 66. Ke5 {[%clk 0:00:15]} 66... Nf3+ {[%clk
0:00:17.5]} 67. Ke6 {[%clk 0:00:13.2]} 67... Nd2 {[%clk 0:00:17]} 68. Be3 {[%clk
0:00:11]} 68... Ne4 {[%clk 0:00:16.4]} 69. Ke5 {[%clk 0:00:11.3]} 69... Nc3
{[%clk 0:00:16.3]} 70. Kf4 {[%clk 0:00:11.3]} 70... Nd5+ {[%clk 0:00:12.8]} 71.
Ke5 {[%clk 0:00:11.4]} 71... Nc3 {[%clk 0:00:13.1]} 72. Ke6 {[%clk 0:00:11.5]}
72... Ne4 {[%clk 0:00:12.9]} 73. Bd4 {[%clk 0:00:11.5]} 73... Nd2 {[%clk
0:00:10.3]} 74. Ke5 {[%clk 0:00:10.4]} 74... Ne4 {[%clk 0:00:09.8]} 75. g4
{[%clk 0:00:09.6]} 75... Nd2 {[%clk 0:00:02.6]} 76. gxf5+ {[%clk 0:00:08.6]}
76... Kf7 {[%clk 0:00:02.7]} 77. Be3 {[%clk 0:00:07.6]} 77... Nc4+ {[%clk
0:00:02.9]} 78. Kd5 {[%clk 0:00:07.6]} 78... Nb2 {[%clk 0:00:02.4]} 79. Bd4
{[%clk 0:00:07.5]} 79... Nd3 {[%clk 0:00:02.2]} 80. f3 {[%clk 0:00:07.8]} 80...
Nf4+ {[%clk 0:00:01.9]} 81. Ke4 {[%clk 0:00:07.7]} 81... Nh5 {[%clk 0:00:02.8]}
82. Ke5 {[%clk 0:00:07.7]} 82... Ng3 {[%clk 0:00:02.8]} 83. Kf4 {[%clk
0:00:07.5]} 83... Nh5+ {[%clk 0:00:03.7]} 84. Kg4 {[%clk 0:00:07.1]} 84... Nf6+
{[%clk 0:00:02.8]} 85. Bxf6 {[%clk 0:00:07.2]} 85... Kxf6 {[%clk 0:00:03.7]} 86.
Kf4 {[%clk 0:00:07.8]} 86... Kf7 {[%clk 0:00:04]} 87. Ke5 {[%clk 0:00:08.2]}
87... Ke7 {[%clk 0:00:03.9]} 88. f6+ {[%clk 0:00:08.5]} 88... Kf7 {[%clk
0:00:04.8]} 89. Kf5 {[%clk 0:00:08.6]} 89... Kf8 {[%clk 0:00:05.7]} 90. Ke6
{[%clk 0:00:08]} 90... Kg8 {[%clk 0:00:06.6]} 91. f7+ {[%clk 0:00:07.6]} 91...
Kf8 {[%clk 0:00:07.5]} 92. f4 {[%clk 0:00:08]} 1-0